[Event "Amsterdam Chess Open 2024"]
[Site "Amsterdam"]
[Date "2024.11.03"]
[Round "6.2"]
[White "Van Rootselaar, Rik"]
[Black "Sharan, Rao"]
[Result "0-1"]
[ECO "E06"]
[WhiteElo "2248"]
[BlackElo "2401"]
[Annotator "RC"]
[PlyCount "52"]
[EventDate "2024.10.31"]
[EventType "swiss"]
[EventCountry "NED"]
[SourceTitle "playchess.com"]
[Source "ChessBase"]
[SourceQuality "1"]
[TimeControl "5400+30"]

1. d4 {[%emt 0:00:03]} Nf6 {[%emt 0:00:04]} 2. c4 {[%emt 0:00:05]} e6 {[%emt 0:00:04]} 3. Nf3 {[%emt 0:00:13]} d5 {[%emt 0:00:05]} 4. g3 {[%emt 0:00:21]} Be7 {[%emt 0:00:08]} 5. Bg2 {[%emt 0:00:10]} Ne4 {[%emt 0:00:18]} 6. O-O {[%emt 0:01:37]} f5 {[%emt 0:00:04]} 7. b3 {[%emt 0:04:15]} Nc6 {[%emt 0:01:45]} 8. e3 {[%emt 0:07:23]} h5 {[%emt 0:06:20]} 9. Ba3 {[%emt 0:10:30]} Bf6 {[%emt 0:00:17]} 10. Nbd2 {[%emt 0:04:36]} h4 {[%emt 0:06:34]} 11. Bb2 {[%emt 0:05:27]} Bd7 {[%emt 0:06:09]} 12. Nxe4 {[%emt 0:05:09]} dxe4 {[%emt 0:04:19]} 13. Nd2 {[%emt 0:01:14]} Qe7 {[%emt 0:02:14]} 14. f3 {[%emt 0:07:11]} exf3 {[%emt 0:01:05]} 15. Qxf3 {[%emt 0:01:09]} hxg3 {[%emt 0:03:11]} 16. hxg3 {[%emt 0:02:51]} O-O-O {[%emt 0:05:18]} 17. Rab1 {[%emt 0:02:39]} g5 {[%emt 0:03:09]} 18. b4 {[%emt 0:00:25]} g4 {[%emt 0:01:40]} 19. Qe2 {[%emt 0:02:49]} Qh7 {[%emt 0:06:30]} 20. Kf2 {[%emt 0:21:32]} f4 {[%emt 0:00:08]} 21. exf4 {[%emt 0:00:34]} Nxd4 {[%emt 0:01:35]} 22. Qe3 {[%emt 0:01:12]} Bc6 {[%emt 0:08:45]} 23. Rh1 {[%emt 0:00:50]} Qc2 {[%emt 0:03:09]} 24. Rxh8 {[%emt 0:02:43]} Bxh8 {[%emt 0:05:14]} 25. Bxc6 {[%emt 0:03:35]} bxc6 {[%emt 0:00:36]} 26. Qc3 {[%emt 0:02:21]} Qh7 {[%emt 0:00:40]} 0-1

[Event "Amsterdam Chess Open 2024"]
[Site "Amsterdam"]
[Date "2024.11.03"]
[Round "6.3"]
[White "Van den Berg, Jeroen"]
[Black "Ragnarsson, Dagur"]
[Result "0-1"]
[ECO "B30"]
[WhiteElo "2042"]
[BlackElo "2346"]
[Annotator "RC"]
[PlyCount "74"]
[EventDate "2024.10.31"]
[EventType "swiss"]
[EventCountry "NED"]
[SourceTitle "playchess.com"]
[Source "ChessBase"]
[SourceQuality "1"]
[TimeControl "5400+30"]

1. e4 {[%emt 0:00:04]} c5 {[%emt 0:00:21]} 2. Nf3 {[%emt 0:00:09]} Nc6 {[%emt 0:00:06]} 3. Bb5 {[%emt 0:00:09]} Nf6 {[%emt 0:00:55]} 4. Qe2 {[%emt 0:02:16]} Nb4 {[%emt 0:04:13]} 5. e5 {[%emt 0:11:21]} Nfd5 {[%emt 0:03:07]} 6. Qe4 {[%emt 0:03:55]} Nc7 {[%emt 0:04:06]} 7. a3 {[%emt 0:04:35]} Nxc2+ {[%emt 0:05:30]} 8. Qxc2 {[%emt 0:00:09]} Nxb5 {[%emt 0:00:03]} 9. Qxc5 {[%emt 0:00:20]} Nc7 {[%emt 0:00:25]} 10. Nc3 {[%emt 0:02:19]} b6 {[%emt 0:10:22]} 11. Qd4 {[%emt 0:04:49]} Bb7 {[%emt 0:00:26]} 12. Qg4 {[%emt 0:00:56]} g6 {[%emt 0:03:58]} 13. h4 {[%emt 0:01:19]} h5 {[%emt 0:04:15]} 14. Qg3 {[%emt 0:08:30]} d5 {[%emt 0:05:24]} 15. d4 {[%emt 0:00:00]} Ba6 {[%emt 0:02:39]} 16. Ng5 {[%emt 0:00:31]} Bg7 {[%emt 0:12:39]} 17. e6 {[%emt 0:01:34]} fxe6 {[%emt 0:00:09]} 18. Bf4 {[%emt 0:01:15]} Rc8 {[%emt 0:00:50]} 19. Qe3 {[%emt 0:15:23]} Bf6 {[%emt 0:03:51]} 20. Rh3 {[%emt 0:08:58]} Qd7 {[%emt 0:02:12]} 21. Bxc7 {[%emt 0:01:57]} Rxc7 {[%emt 0:00:12]} 22. Nxe6 {[%emt 0:00:29]} Rc6 {[%emt 0:03:30]} 23. Nf4 {[%emt 0:00:33]} Bc4 {[%emt 0:04:54]} 24. O-O-O {[%emt 0:01:25]} g5 {[%emt 0:00:31]} 25. Ng6 {[%emt 0:03:15]} g4 {[%emt 0:00:54]} 26. Rhh1 {[%emt 0:06:10]} Bg7 {[%emt 0:01:28]} 27. Ne5 {[%emt 0:00:57]} Qf5 {[%emt 0:04:16]} 28. f4 {[%emt 0:04:07]} gxf3 {[%emt 0:00:13]} 29. Nxf3 {[%emt 0:00:06]} Re6 {[%emt 0:04:57]} 30. Qd2 {[%emt 0:01:21]} Bh6 {[%emt 0:00:11]} 31. Ng5 {[%emt 0:00:11]} Rg8 {[%emt 0:01:06]} 32. Qc2 {[%emt 0:00:40]} Bxg5+ {[%emt 0:01:20]} 33. hxg5 {[%emt 0:00:08]} Qxc2+ {[%emt 0:00:45]} 34. Kxc2 {[%emt 0:00:07]} Rxg5 {[%emt 0:00:03]} 35. Rd2 {[%emt 0:00:37]} Reg6 {[%emt 0:00:59]} 36. Nd1 {[%emt 0:02:36]} Rxg2 {[%emt 0:00:52]} 37. Rxh5 {[%emt 0:00:34]} Bb3+ {[%emt 0:00:27]} 0-1

[Event "Amsterdam Chess Open 2024"]
[Site "Amsterdam"]
[Date "2024.11.03"]
[Round "6.4"]
[White "Schippers, Maurice"]
[Black "Kumar, Prajit Sai"]
[Result "1-0"]
[ECO "B30"]
[WhiteElo "2287"]
[BlackElo "2179"]
[Annotator "RC"]
[PlyCount "61"]
[EventDate "2024.10.31"]
[EventType "swiss"]
[EventCountry "NED"]
[SourceTitle "playchess.com"]
[Source "ChessBase"]
[SourceQuality "1"]
[TimeControl "5400+30"]

1. e4 {[%emt 0:00:02]} c5 {[%emt 0:00:03]} 2. Nf3 {[%emt 0:00:05]} Nc6 {[%emt 0:00:04]} 3. Bb5 {[%emt 0:00:24]} e6 {[%emt 0:00:05]} 4. O-O {[%emt 0:00:17]} Nge7 {[%emt 0:00:05]} 5. Re1 {[%emt 0:00:04]} b6 {[%emt 0:00:33]} 6. c3 {[%emt 0:01:05]} a6 {[%emt 0:00:24]} 7. Ba4 {[%emt 0:01:59]} c4 {[%emt 0:00:07]} 8. Bc2 {[%emt 0:00:26]} Ng6 {[%emt 0:04:33]} 9. b3 {[%emt 0:00:54]} b5 {[%emt 0:02:38]} 10. a4 {[%emt 0:05:17]} Bb7 {[%emt 0:07:18]} 11. d3 {[%emt 0:04:28]} cxd3 {[%emt 0:01:59]} 12. Bxd3 {[%emt 0:00:05]} b4 {[%emt 0:03:49]} 13. Bb2 {[%emt 0:02:39]} f6 {[%emt 0:04:04]} 14. Nbd2 {[%emt 0:02:42]} Be7 {[%emt 0:02:13]} 15. Nc4 {[%emt 0:00:22]} a5 {[%emt 0:01:42]} 16. Bf1 {[%emt 0:05:37]} Qc7 {[%emt 0:09:54]} 17. Nd4 {[%emt 0:04:34]} Nxd4 {[%emt 0:02:24]} 18. cxd4 {[%emt 0:00:08]} O-O {[%emt 0:01:29]} 19. Rc1 {[%emt 0:01:47]} Qd8 {[%emt 0:25:36]} 20. d5 {[%emt 0:13:34]} f5 {[%emt 0:12:38]} 21. exf5 {[%emt 0:12:02]} exf5 {[%emt 0:00:05]} 22. Bd4 {[%emt 0:03:17]} Ra6 {[%emt 0:05:23]} 23. g3 {[%emt 0:07:04]} Bg5 {[%emt 0:03:10]} 24. Rc2 {[%emt 0:02:34]} Bf6 {[%emt 0:02:31]} 25. Ne3 {[%emt 0:04:18]} Ra8 {[%emt 0:00:10]} 26. Nxf5 {[%emt 0:03:34]} Bxd4 {[%emt 0:00:31]} 27. Nxd4 {[%emt 0:00:09]} Bxd5 {[%emt 0:00:41]} 28. Rc5 {[%emt 0:01:21]} Bb7 {[%emt 0:03:21]} 29. Bc4+ {[%emt 0:03:56]} Kh8 {[%emt 0:00:58]} 30. Qh5 {[%emt 0:01:11]} Qf6 {[%emt 0:00:26]} 31. Qxh7+ {[%emt 0:00:16]} 1-0

[Event "Amsterdam Chess Open 2024"]
[Site "Amsterdam"]
[Date "2024.11.03"]
[Round "6.5"]
[White "Stolwijk, Colin"]
[Black "Bagrationi, Alexander"]
[Result "1/2-1/2"]
[ECO "B27"]
[WhiteElo "2230"]
[BlackElo "2391"]
[Annotator "RC"]
[PlyCount "235"]
[EventDate "2024.10.31"]
[EventType "swiss"]
[EventCountry "NED"]
[SourceTitle "playchess.com"]
[Source "ChessBase"]
[SourceQuality "1"]
[TimeControl "5400+30"]

1. e4 {[%emt 0:00:04]} c5 {[%emt 0:00:30]} 2. Nf3 {[%emt 0:00:05]} g6 {[%emt 0:00:13]} 3. c3 {[%emt 0:00:11]} d5 {[%emt 0:00:06]} 4. e5 {[%emt 0:00:29]} Nc6 {[%emt 0:00:32]} 5. d4 {[%emt 0:00:06]} Bg7 {[%emt 0:03:44]} 6. Bb5 {[%emt 0:03:14]} Qb6 {[%emt 0:00:45]} 7. Bxc6+ {[%emt 0:00:51]} bxc6 {[%emt 0:00:24]} 8. dxc5 {[%emt 0:05:39]} Qxc5 {[%emt 0:00:26]} 9. O-O {[%emt 0:00:17]} Qb6 {[%emt 0:01:55]} 10. Nbd2 {[%emt 0:14:15]} Nh6 {[%emt 0:01:40]} 11. Nb3 {[%emt 0:00:37]} Ng4 {[%emt 0:03:47]} 12. Bf4 {[%emt 0:01:17]} Ba6 {[%emt 0:04:41]} 13. h3 {[%emt 0:09:56]} Bxf1 {[%emt 0:00:23]} 14. Qxf1 {[%emt 0:00:01]} Nh6 {[%emt 0:00:16]} 15. Qc1 {[%emt 0:00:19]} Ng8 {[%emt 0:00:44]} 16. e6 {[%emt 0:02:07]} fxe6 {[%emt 0:02:52]} 17. Qe1 {[%emt 0:12:31]} Nf6 {[%emt 0:22:59]} 18. Ng5 {[%emt 0:03:41]} Bh6 {[%emt 0:02:13]} 19. Be3 {[%emt 0:06:02]} Qb8 {[%emt 0:01:30]} 20. Nxe6 {[%emt 0:01:34]} Bxe3 {[%emt 0:00:12]} 21. Qxe3 {[%emt 0:00:03]} Qd6 {[%emt 0:00:15]} 22. Nbd4 {[%emt 0:08:40]} Kf7 {[%emt 0:01:55]} 23. b4 {[%emt 0:03:53]} Rhe8 {[%emt 0:00:57]} 24. Qh6 {[%emt 0:00:50]} Rg8 {[%emt 0:01:55]} 25. Re1 {[%emt 0:01:32]} a5 {[%emt 0:02:35]} 26. b5 {[%emt 0:06:38]} cxb5 {[%emt 0:02:42]} 27. Nxb5 {[%emt 0:00:30]} Qc6 {[%emt 0:01:38]} 28. Nbc7 {[%emt 0:00:25]} g5 {[%emt 0:04:36]} 29. Re5 {[%emt 0:02:13]} Rg6 {[%emt 0:03:56]} 30. Nxa8 {[%emt 0:02:28]} Qxe6 {[%emt 0:01:51]} 31. Rxe6 {[%emt 0:00:42]} Rxh6 {[%emt 0:00:05]} 32. Ra6 {[%emt 0:00:30]} Rh4 {[%emt 0:00:20]} 33. Nb6 {[%emt 0:02:32]} Re4 {[%emt 0:01:11]} 34. Rxa5 {[%emt 0:00:12]} Re1+ {[%emt 0:00:04]} 35. Kh2 {[%emt 0:00:02]} Ke6 {[%emt 0:00:08]} 36. a4 {[%emt 0:03:41]} Rc1 {[%emt 0:01:00]} 37. Rc5 {[%emt 0:00:52]} Kd6 {[%emt 0:00:06]} 38. Rc8 {[%emt 0:00:08]} d4 {[%emt 0:00:05]} 39. cxd4 {[%emt 0:00:29]} Ra1 {[%emt 0:01:19]} 40. d5 {[%emt 0:00:51]} Ra2 {[%emt 0:00:17]} 41. Rc6+ {[%emt 0:00:36]} Ke5 {[%emt 0:00:01]} 42. Re6+ {[%emt 0:00:09]} Kf5 {[%emt 0:00:06]} 43. Rxe7 {[%emt 0:01:24]} Rxf2 {[%emt 0:00:05]} 44. Nd7 {[%emt 0:04:24]} Nxd7 {[%emt 0:02:07]} 45. Rxd7 {[%emt 0:00:02]} Ra2 {[%emt 0:00:10]} 46. Ra7 {[%emt 0:01:29]} Ke5 {[%emt 0:00:15]} 47. Rxh7 {[%emt 0:02:41]} Rxa4 {[%emt 0:00:12]} 48. Re7+ {[%emt 0:00:11]} Kf6 {[%emt 0:00:12]} 49. Re6+ {[%emt 0:00:17]} Kf7 {[%emt 0:00:18]} 50. Rd6 {[%emt 0:00:23]} Ra3 {[%emt 0:00:20]} 51. Kg1 {[%emt 0:01:00]} Ra2 {[%emt 0:00:14]} 52. Rd8 {[%emt 0:01:48]} Rd2 {[%emt 0:01:05]} 53. d6 {[%emt 0:00:28]} Kg7 {[%emt 0:01:47]} 54. Kh2 {[%emt 0:00:05]} Rd3 {[%emt 0:00:07]} 55. d7 {[%emt 0:00:51]} g4 {[%emt 0:00:17]} 56. hxg4 {[%emt 0:00:14]} Kh7 {[%emt 0:00:04]} 57. Kg1 {[%emt 0:00:41]} Rd2 {[%emt 0:00:02]} 58. Kf1 {[%emt 0:00:08]} Kg7 {[%emt 0:00:04]} 59. Ke1 {[%emt 0:00:05]} Rd6 {[%emt 0:00:05]} 60. Kf2 {[%emt 0:00:14]} Rd3 {[%emt 0:00:04]} 61. Ke2 {[%emt 0:00:02]} Rd4 {[%emt 0:00:03]} 62. Ke3 {[%emt 0:00:09]} Rd1 {[%emt 0:00:02]} 63. Ke4 {[%emt 0:00:11]} Re1+ {[%emt 0:00:04]} 64. Kf5 {[%emt 0:00:04]} Rf1+ {[%emt 0:00:04]} 65. Ke6 {[%emt 0:03:03]} Re1+ {[%emt 0:00:04]} 66. Kf5 {[%emt 0:00:03]} Rf1+ {[%emt 0:00:03]} 67. Kg5 {[%emt 0:00:01]} Rd1 {[%emt 0:00:05]} 68. g3 {[%emt 0:01:00]} Rd5+ {[%emt 0:00:13]} 69. Kh4 {[%emt 0:00:08]} Rd4 {[%emt 0:00:07]} 70. Kh5 {[%emt 0:01:30]} Rd5+ {[%emt 0:00:11]} 71. g5 {[%emt 0:00:21]} Rd4 {[%emt 0:00:22]} 72. Ra8 {[%emt 0:00:41]} Rxd7 {[%emt 0:00:06]} 73. Ra6 {[%emt 0:00:04]} Rb7 {[%emt 0:00:13]} 74. Ra5 {[%emt 0:00:28]} Rc7 {[%emt 0:00:12]} 75. Rb5 {[%emt 0:00:04]} Ra7 {[%emt 0:00:05]} 76. Rc5 {[%emt 0:00:01]} Rb7 {[%emt 0:00:05]} 77. Rd5 {[%emt 0:00:02]} Ra7 {[%emt 0:00:04]} 78. Re5 {[%emt 0:00:05]} Rb7 {[%emt 0:00:04]} 79. Rf5 {[%emt 0:00:34]} Rb3 {[%emt 0:00:26]} 80. Kg4 {[%emt 0:00:31]} Rb4+ {[%emt 0:00:01]} 81. Rf4 {[%emt 0:00:06]} Rb3 {[%emt 0:00:08]} 82. Ra4 {[%emt 0:00:24]} Rb7 {[%emt 0:00:05]} 83. Kh5 {[%emt 0:00:13]} Rc7 {[%emt 0:00:06]} 84. Ra3 {[%emt 0:00:07]} Rb7 {[%emt 0:00:04]} 85. Rf3 {[%emt 0:00:39]} Rb5 {[%emt 0:00:09]} 86. g4 {[%emt 0:00:49]} Ra5 {[%emt 0:00:32]} 87. Rf5 {[%emt 0:00:32]} Ra1 {[%emt 0:01:57]} 88. g6 {[%emt 0:00:08]} Rh1+ {[%emt 0:00:15]} 89. Kg5 {[%emt 0:00:02]} Ra1 {[%emt 0:00:05]} 90. Rf7+ {[%emt 0:00:08]} Kg8 {[%emt 0:00:01]} 91. Rb7 {[%emt 0:00:20]} Rh1 {[%emt 0:00:39]} 92. Rb8+ {[%emt 0:01:04]} Kg7 {[%emt 0:00:07]} 93. Rb7+ {[%emt 0:00:01]} Kg8 {[%emt 0:00:05]} 94. Rc7 {[%emt 0:04:38]} Ra1 {[%emt 0:00:45]} 95. Rf7 {[%emt 0:00:06]} Rh1 {[%emt 0:00:12]} 96. Rf5 {[%emt 0:00:33]} Ra1 {[%emt 0:00:15]} 97. Kh6 {[%emt 0:00:26]} Rh1+ {[%emt 0:00:13]} 98. Rh5 {[%emt 0:00:01]} Ra1 {[%emt 0:00:08]} 99. Rh2 {[%emt 0:00:17]} Rb1 {[%emt 0:00:10]} 100. Rf2 {[%emt 0:01:48]} Rh1+ {[%emt 0:00:05]} 101. Kg5 {[%emt 0:00:02]} Ra1 {[%emt 0:00:05]} 102. Re2 {[%emt 0:00:43]} Kg7 {[%emt 0:01:38]} 103. Re7+ {[%emt 0:00:08]} Kg8 {[%emt 0:00:02]} 104. g7 {[%emt 0:01:26]} Ra5+ {[%emt 0:00:57]} 105. Kh6 {[%emt 0:00:11]} Ra6+ {[%emt 0:00:10]} 106. Kh5 {[%emt 0:00:04]} Rh6+ {[%emt 0:00:49]} 107. Kg5 {[%emt 0:00:13]} Ra6 {[%emt 0:00:01]} 108. Rb7 {[%emt 0:00:57]} Ra1 {[%emt 0:01:48]} 109. Kh5 {[%emt 0:00:27]} Kh7 {[%emt 0:01:54]} 110. Re7 {[%emt 0:00:19]} Rb1 {[%emt 0:00:31]} 111. g5 {[%emt 0:00:53]} Rb6 {[%emt 0:00:48]} 112. Ra7 {[%emt 0:00:46]} Rc6 {[%emt 0:00:14]} 113. g6+ {[%emt 0:00:34]} Kg8 {[%emt 0:00:05]} 114. Ra8+ {[%emt 0:00:07]} Kxg7 {[%emt 0:00:11]} 115. Ra7+ {[%emt 0:00:03]} Kg8 {[%emt 0:00:43]} 116. Kh6 {[%emt 0:00:05]} Rc8 {[%emt 0:00:10]} 117. Rg7+ {[%emt 0:00:34]} Kh8 {[%emt 0:00:08]} 118. Rh7+ {[%emt 0:00:23]} 1/2-1/2

[Event "Amsterdam Chess Open 2024"]
[Site "Amsterdam"]
[Date "2024.11.03"]
[Round "6.6"]
[White "Brookes, Christopher"]
[Black "Braun, Vitali"]
[Result "1/2-1/2"]
[ECO "C11"]
[WhiteElo "2218"]
[BlackElo "2339"]
[Annotator "RC"]
[PlyCount "133"]
[EventDate "2024.10.31"]
[EventType "swiss"]
[EventCountry "NED"]
[SourceTitle "playchess.com"]
[Source "ChessBase"]
[SourceQuality "1"]
[TimeControl "5400+30"]

1. e4 {[%emt 0:00:03]} e6 {[%emt 0:03:50]} 2. d4 {[%emt 0:00:33]} d5 {[%emt 0:00:14]} 3. Nc3 {[%emt 0:00:09]} Nf6 {[%emt 0:00:09]} 4. e5 {[%emt 0:00:23]} Nfd7 {[%emt 0:00:10]} 5. f4 {[%emt 0:00:06]} c5 {[%emt 0:00:09]} 6. Nf3 {[%emt 0:00:05]} Nc6 {[%emt 0:00:05]} 7. Be3 {[%emt 0:00:07]} cxd4 {[%emt 0:00:37]} 8. Nxd4 {[%emt 0:00:36]} Bc5 {[%emt 0:00:19]} 9. Qd2 {[%emt 0:00:31]} O-O {[%emt 0:00:28]} 10. O-O-O {[%emt 0:00:29]} a6 {[%emt 0:00:13]} 11. Kb1 {[%emt 0:04:56]} Nxd4 {[%emt 0:01:21]} 12. Bxd4 {[%emt 0:00:20]} b5 {[%emt 0:00:07]} 13. Qf2 {[%emt 0:01:37]} Qe7 {[%emt 0:13:53]} 14. Bd3 {[%emt 0:08:42]} Bb7 {[%emt 0:05:36]} 15. Rhe1 {[%emt 0:01:02]} Bxd4 {[%emt 0:09:42]} 16. Qxd4 {[%emt 0:00:21]} Qc5 {[%emt 0:00:04]} 17. Ne2 {[%emt 0:00:35]} b4 {[%emt 0:00:38]} 18. Rc1 {[%emt 0:14:04]} Qxd4 {[%emt 0:05:31]} 19. Nxd4 {[%emt 0:00:17]} Nc5 {[%emt 0:00:04]} 20. Re3 {[%emt 0:01:45]} Rfc8 {[%emt 0:11:58]} 21. c3 {[%emt 0:07:25]} a5 {[%emt 0:00:43]} 22. f5 {[%emt 0:05:32]} Nxd3 {[%emt 0:23:18]} 23. Rxd3 {[%emt 0:00:14]} bxc3 {[%emt 0:00:11]} 24. fxe6 {[%emt 0:06:32]} cxb2 {[%emt 0:05:18]} 25. Rxc8+ {[%emt 0:00:21]} Bxc8 {[%emt 0:00:34]} 26. e7 {[%emt 0:00:15]} Bd7 {[%emt 0:01:40]} 27. Kxb2 {[%emt 0:05:42]} Re8 {[%emt 0:01:03]} 28. Nf3 {[%emt 0:05:17]} Rxe7 {[%emt 0:01:37]} 29. Rxd5 {[%emt 0:00:05]} a4 {[%emt 0:00:23]} 30. Nd4 {[%emt 0:00:34]} g6 {[%emt 0:02:57]} 31. Ka3 {[%emt 0:03:47]} Kg7 {[%emt 0:00:14]} 32. Kb4 {[%emt 0:02:17]} f6 {[%emt 0:02:11]} 33. exf6+ {[%emt 0:04:11]} Kxf6 {[%emt 0:00:05]} 34. g3 {[%emt 0:02:27]} Be8 {[%emt 0:00:41]} 35. Rd6+ {[%emt 0:01:38]} Ke5 {[%emt 0:00:40]} 36. Kc5 {[%emt 0:00:16]} Rc7+ {[%emt 0:04:45]} 37. Nc6+ {[%emt 0:00:52]} Kf5 {[%emt 0:00:32]} 38. Kb6 {[%emt 0:02:18]} Rd7 {[%emt 0:00:07]} 39. g4+ {[%emt 0:09:07]} Kg5 {[%emt 0:02:26]} 40. Re6 {[%emt 0:02:36]} Bf7 {[%emt 0:00:05]} 41. Re4 {[%emt 0:00:28]} Bxa2 {[%emt 0:02:18]} 42. Rxa4 {[%emt 0:01:21]} Be6 {[%emt 0:01:04]} 43. Ne5 {[%emt 0:00:28]} Rd1 {[%emt 0:01:19]} 44. Nf3+ {[%emt 0:00:36]} Kf6 {[%emt 0:00:04]} 45. Rf4+ {[%emt 0:00:50]} Ke7 {[%emt 0:00:20]} 46. Kc5 {[%emt 0:02:40]} Rf1 {[%emt 0:00:25]} 47. g5 {[%emt 0:01:13]} Rd1 {[%emt 0:01:37]} 48. Re4 {[%emt 0:03:42]} Rd5+ {[%emt 0:01:15]} 49. Kc6 {[%emt 0:00:15]} Rd6+ {[%emt 0:00:04]} 50. Kc5 {[%emt 0:00:05]} Rd5+ {[%emt 0:00:03]} 51. Kc6 {[%emt 0:00:05]} Rd6+ {[%emt 0:01:44]} 52. Kc5 {[%emt 0:00:05]} Kd7 {[%emt 0:00:31]} 53. Rd4 {[%emt 0:01:13]} Rxd4 {[%emt 0:00:06]} 54. Kxd4 {[%emt 0:00:14]} Kd6 {[%emt 0:00:10]} 55. Ke3 {[%emt 0:02:35]} Bd5 {[%emt 0:00:31]} 56. Nd4 {[%emt 0:01:41]} Ke5 {[%emt 0:00:19]} 57. h3 {[%emt 0:01:55]} Bg2 {[%emt 0:00:57]} 58. h4 {[%emt 0:00:02]} Bd5 {[%emt 0:00:05]} 59. Nb5 {[%emt 0:00:12]} Kf5 {[%emt 0:00:21]} 60. Nd6+ {[%emt 0:00:21]} Kg4 {[%emt 0:00:18]} 61. Ne8 {[%emt 0:00:05]} Kxh4 {[%emt 0:00:41]} 62. Kf4 {[%emt 0:00:23]} Bb3 {[%emt 0:01:05]} 63. Nf6 {[%emt 0:00:08]} Bc4 {[%emt 0:00:55]} 64. Nxh7 {[%emt 0:00:06]} Bb3 {[%emt 0:00:15]} 65. Ke5 {[%emt 0:00:13]} Bg8 {[%emt 0:00:07]} 66. Nf8 {[%emt 0:00:23]} Kxg5 {[%emt 0:00:08]} 67. Nxg6 {[%emt 0:00:04]} 1/2-1/2

[Event "Amsterdam Chess Open 2024"]
[Site "Amsterdam"]
[Date "2024.11.03"]
[Round "6.7"]
[White "Abdulla, Murad"]
[Black "Birkisson, Bjorn Holm"]
[Result "1/2-1/2"]
[ECO "A13"]
[WhiteElo "2329"]
[BlackElo "2165"]
[Annotator "RC"]
[PlyCount "61"]
[EventDate "2024.10.31"]
[EventType "swiss"]
[EventCountry "NED"]
[SourceTitle "playchess.com"]
[Source "ChessBase"]
[SourceQuality "1"]
[TimeControl "5400+30"]

1. Nf3 {[%emt 0:00:04]} Nf6 {[%emt 0:00:19]} 2. g3 {[%emt 0:01:19]} d5 {[%emt 0:00:23]} 3. Bg2 {[%emt 0:01:21]} e6 {[%emt 0:00:28]} 4. O-O {[%emt 0:01:00]} c5 {[%emt 0:00:33]} 5. c4 {[%emt 0:07:05]} d4 {[%emt 0:00:34]} 6. b4 {[%emt 0:04:37]} cxb4 {[%emt 0:04:07]} 7. Bb2 {[%emt 0:02:40]} Bc5 {[%emt 0:13:48]} 8. e3 {[%emt 0:07:55]} Nc6 {[%emt 0:01:26]} 9. exd4 {[%emt 0:04:47]} Nxd4 {[%emt 0:00:07]} 10. Nxd4 {[%emt 0:00:32]} Bxd4 {[%emt 0:00:05]} 11. Qa4+ {[%emt 0:00:22]} Bd7 {[%emt 0:00:18]} 12. Qxb4 {[%emt 0:00:15]} Bxb2 {[%emt 0:00:17]} 13. Qxb2 {[%emt 0:00:07]} Bc6 {[%emt 0:01:02]} 14. Qb4 {[%emt 0:23:16]} Qe7 {[%emt 0:06:02]} 15. a3 {[%emt 0:01:09]} Rd8 {[%emt 0:08:13]} 16. Rd1 {[%emt 0:04:10]} Bxg2 {[%emt 0:02:39]} 17. Kxg2 {[%emt 0:00:20]} Rd7 {[%emt 0:00:08]} 18. Nc3 {[%emt 0:02:07]} O-O {[%emt 0:09:45]} 19. Qxe7 {[%emt 0:06:06]} Rxe7 {[%emt 0:00:05]} 20. Nb5 {[%emt 0:00:24]} b6 {[%emt 0:17:22]} 21. a4 {[%emt 0:01:19]} Rd8 {[%emt 0:11:17]} 22. a5 {[%emt 0:03:26]} Red7 {[%emt 0:01:17]} 23. axb6 {[%emt 0:06:44]} axb6 {[%emt 0:00:05]} 24. d4 {[%emt 0:00:09]} Kf8 {[%emt 0:02:59]} 25. Ra6 {[%emt 0:06:41]} Rc8 {[%emt 0:03:02]} 26. Rc1 {[%emt 0:01:40]} Nd5 {[%emt 0:02:08]} 27. Ra4 {[%emt 0:09:36]} Nc7 {[%emt 0:02:18]} 28. Nxc7 {[%emt 0:03:30]} Rdxc7 {[%emt 0:03:03]} 29. Rb4 {[%emt 0:00:14]} Rd8 {[%emt 0:00:48]} 30. Rd1 {[%emt 0:00:32]} Rdc8 {[%emt 0:00:45]} 31. Rc1 {[%emt 0:00:51]} 1/2-1/2

[Event "Amsterdam Chess Open 2024"]
[Site "Amsterdam"]
[Date "2024.11.03"]
[Round "6.8"]
[White "Pham, Khoi"]
[Black "Stojiljkovic, Stefan"]
[Result "1-0"]
[ECO "A11"]
[WhiteElo "2264"]
[BlackElo "2122"]
[Annotator "RC"]
[PlyCount "91"]
[EventDate "2024.10.31"]
[EventType "swiss"]
[EventCountry "NED"]
[SourceTitle "playchess.com"]
[Source "ChessBase"]
[SourceQuality "1"]
[TimeControl "5400+30"]

1. Nf3 {[%emt 0:00:02]} d5 {[%emt 0:00:15]} 2. g3 {[%emt 0:00:04]} Nf6 {[%emt 0:00:56]} 3. Bg2 {[%emt 0:00:07]} Bf5 {[%emt 0:01:14]} 4. O-O {[%emt 0:00:28]} e6 {[%emt 0:00:13]} 5. c4 {[%emt 0:02:24]} c6 {[%emt 0:00:22]} 6. Qb3 {[%emt 0:00:55]} Qb6 {[%emt 0:01:54]} 7. d3 {[%emt 0:00:08]} Nbd7 {[%emt 0:01:36]} 8. cxd5 {[%emt 0:00:45]} Qxb3 {[%emt 0:04:48]} 9. axb3 {[%emt 0:00:05]} exd5 {[%emt 0:00:55]} 10. Bd2 {[%emt 0:03:46]} Be7 {[%emt 0:04:49]} 11. b4 {[%emt 0:00:46]} Bg4 {[%emt 0:05:13]} 12. Nd4 {[%emt 0:01:38]} O-O {[%emt 0:01:28]} 13. h3 {[%emt 0:01:42]} Be6 {[%emt 0:01:59]} 14. Bc3 {[%emt 0:02:59]} Rfd8 {[%emt 0:07:29]} 15. Nd2 {[%emt 0:02:14]} Nf8 {[%emt 0:04:21]} 16. f4 {[%emt 0:06:50]} Bd7 {[%emt 0:02:59]} 17. N2f3 {[%emt 0:03:02]} a5 {[%emt 0:02:24]} 18. bxa5 {[%emt 0:02:26]} c5 {[%emt 0:00:51]} 19. Nc2 {[%emt 0:00:51]} d4 {[%emt 0:05:04]} 20. Bd2 {[%emt 0:03:42]} Bc6 {[%emt 0:04:27]} 21. Na3 {[%emt 0:01:23]} Bd5 {[%emt 0:03:07]} 22. Ne5 {[%emt 0:04:59]} Bxg2 {[%emt 0:00:43]} 23. Kxg2 {[%emt 0:00:05]} Nd5 {[%emt 0:00:41]} 24. Nb5 {[%emt 0:03:29]} h5 {[%emt 0:01:37]} 25. Kf3 {[%emt 0:03:01]} Ra6 {[%emt 0:04:35]} 26. Nc4 {[%emt 0:06:16]} Rf6 {[%emt 0:03:35]} 27. g4 {[%emt 0:04:49]} Nxf4 {[%emt 0:12:24]} 28. g5 {[%emt 0:01:46]} Rf5 {[%emt 0:00:55]} 29. Bxf4 {[%emt 0:01:18]} Ng6 {[%emt 0:02:24]} 30. Kg3 {[%emt 0:03:24]} h4+ {[%emt 0:02:04]} 31. Kg4 {[%emt 0:00:06]} Rdd5 {[%emt 0:00:13]} 32. Bd2 {[%emt 0:07:48]} Ne5+ {[%emt 0:07:08]} 33. Nxe5 {[%emt 0:01:57]} Rfxe5 {[%emt 0:00:11]} 34. Bf4 {[%emt 0:00:43]} Rxe2 {[%emt 0:04:15]} 35. Rfe1 {[%emt 0:00:18]} Rxg5+ {[%emt 0:02:46]} 36. Kf3 {[%emt 0:04:05]} Rxb2 {[%emt 0:01:08]} 37. Bxg5 {[%emt 0:02:50]} Bxg5 {[%emt 0:01:00]} 38. Nd6 {[%emt 0:01:09]} Rh2 {[%emt 0:00:27]} 39. Nxb7 {[%emt 0:01:21]} Rxh3+ {[%emt 0:00:20]} 40. Ke4 {[%emt 0:00:05]} Bd2 {[%emt 0:00:14]} 41. Re2 {[%emt 0:00:35]} f5+ {[%emt 0:00:43]} 42. Kxf5 {[%emt 0:00:40]} Bc3 {[%emt 0:00:21]} 43. Rf1 {[%emt 0:00:21]} Re3 {[%emt 0:00:16]} 44. Rxe3 {[%emt 0:01:50]} dxe3 {[%emt 0:00:01]} 45. a6 {[%emt 0:00:08]} e2 {[%emt 0:00:09]} 46. Rh1 {[%emt 0:00:06]} 1-0